bitfinex-derivatives/quotes_BTCF0:USTF0_20250812
["timestamp","ask_amount","ask_price","bid_price","bid_amount"]
[1754958307268,0.084035,118990.0,118980.0,0.2749262]
[1754958307568,1.57025317,118990.0,118980.0,0.2749262]
[1754958307970,1.57881908,118990.0,118980.0,0.2749262]
[1754958308564,1.57881908,118990.0,118980.0,0.2769262]
[1754958310369,1.57881908,118990.0,118980.0,0.2541162]
[1754958310571,1.57881908,118990.0,118980.0,0.1908865]
[1754958310771,1.57981908,118990.0,118980.0,0.1908865]
[1754958312074,1.57981908,118990.0,118980.0,0.2228065]
[1754958312267,1.57981908,118990.0,118980.0,0.2621365]
[1754958313972,1.57981908,118990.0,118980.0,0.2165365]
[1754958314366,1.57981908,118990.0,118980.0,0.2000065]
[1754958314871,1.57981908,118990.0,118980.0,0.1908865]
[1754958315972,1.57981908,118990.0,118980.0,0.1680765]
[1754958316363,1.57981908,118990.0,118980.0,0.0840381]
[1754958316768,0.0840421,118980.0,118970.0,0.3589972]
[1754958316970,0.78434027,118980.0,118970.0,0.3909172]
[1754958317170,0.78434027,118980.0,118970.0,0.4137172]
[1754958317368,0.78434027,118980.0,118970.0,0.4302472]
[1754958318073,0.78534027,118980.0,118970.0,0.4529372]
[1754958318874,0.92494027,118980.0,118970.0,0.4529372]
[1754958320876,0.92494027,118980.0,118970.0,0.4545572]
[1754958322974,0.92494027,118980.0,118970.0,0.3705104]
[1754958323977,0.92494027,118980.0,118970.0,0.2749504]
[1754958324479,0.92494027,118980.0,118970.0,0.1909036]
[1754958324874,0.0840492,118970.0,118960.0,0.2521674]
[1754958325081,1.70914737,118970.0,118960.0,0.1929616]
[1754958325483,0.2236562,118960.0,118950.0,0.2846784]
[1754958325781,0.0840633,118950.0,118940.0,0.2669391]
[1754958325980,1.56952147,118950.0,118940.0,0.3699491]
[1754958326669,1.70912147,118950.0,118940.0,0.3552191]
[1754958326876,0.0840845,118920.0,118910.0,0.36677323]
[1754958327072,2.28555084,118920.0,118910.0,0.0604]
[1754958327374,0.0840916,118910.0,118900.0,0.1313187]
[1754958327569,0.82363977,118910.0,118900.0,0.1769887]
[1754958327879,0.96323977,118910.0,118900.0,0.03066]
[1754958328177,0.96323977,118910.0,118900.0,0.0933687]
[1754958328477,0.82363977,118910.0,118900.0,0.0933687]
[1754958328678,2.32363977,118910.0,118900.0,0.1619787]
[1754958328872,2.32363977,118910.0,118900.0,0.2018387]
[1754958329582,1.6243416,118910.0,118900.0,0.2018387]
[1754958329782,2.32463977,118910.0,118900.0,0.2018387]
[1754958330283,2.32363977,118910.0,118900.0,0.2018387]
[1754958330487,2.24054817,118910.0,118900.0,0.2018387]
[1754958330784,2.32463967,118910.0,118900.0,0.2018387]
[1754958330985,2.39200488,118910.0,118900.0,0.2018387]
[1754958332484,2.39200488,118910.0,118900.0,0.1871087]
[1754958332985,2.39200488,118910.0,118900.0,0.2018387]
[1754958333884,2.30791338,118910.0,118900.0,0.2018387]
[1754958334385,2.39200488,118910.0,118900.0,0.2018387]
[1754958336877,2.30791338,118910.0,118900.0,0.2018387]
[1754958337084,2.39200488,118910.0,118900.0,0.2018387]
[1754958338189,2.39200488,118910.0,118900.0,0.1396087]
[1754958338402,2.39200488,118910.0,118900.0,0.0840987]
[1754958339691,2.39200488,118910.0,118890.0,0.2523093]
[1754958339891,2.29323494,118900.0,118890.0,0.2523093]
[1754958340093,1.59293677,118900.0,118890.0,0.2523093]
[1754958340395,1.59293677,118900.0,118890.0,0.2771593]
[1754958340591,0.8926386,118900.0,118890.0,0.2771593]
[1754958340798,1.60868677,118900.0,118890.0,0.3336493]
[1754958341001,0.9083886,118900.0,118890.0,0.3336493]
[1754958341184,1.60868677,118900.0,118890.0,0.2864293]
[1754958341387,0.0841057,118890.0,118880.0,0.168322]
[1754958341592,1.52395204,118890.0,118880.0,0.286062]
[1754958341997,0.82365387,118890.0,118880.0,0.286062]
[1754958342588,1.52395204,118890.0,118880.0,0.286062]
[1754958343204,1.52395204,118890.0,118880.0,0.239842]
[1754958343697,1.52395204,118890.0,118880.0,0.224832]
[1754958344098,1.52541643,118890.0,118880.0,0.224832]
[1754958345004,1.52541643,118890.0,118880.0,0.194172]
[1754958345202,1.52541643,118890.0,118880.0,0.169322]
[1754958345901,0.12482009,118890.0,118880.0,0.169322]
[1754958346108,1.52541643,118890.0,118880.0,0.169322]
[1754958346605,1.52541643,118890.0,118880.0,0.0852092]
[1754958349605,0.0841195,118870.0,118860.0,0.3100613]
[1754958349810,1.78717827,118870.0,118850.0,0.3838323]
[1754958350013,0.81275477,118860.0,118850.0,0.3226183]
[1754958350310,0.83409477,118860.0,118850.0,0.3480683]
[1754958350608,0.83409477,118860.0,118850.0,0.3345183]
[1754958350912,0.83409477,118860.0,118850.0,0.3480683]
[1754958351803,0.74996817,118860.0,118850.0,0.3480683]
[1754958352010,0.74996817,118860.0,118850.0,0.3720083]
[1754958352310,0.74996817,118860.0,118850.0,0.3750083]
[1754958353007,0.74996817,118860.0,118850.0,0.3780083]
[1754958354807,0.83409467,118860.0,118850.0,0.3780083]
[1754958355103,0.74996817,118860.0,118850.0,0.3480583]
[1754958355311,0.74996817,118860.0,118850.0,0.3780083]
[1754958356402,1.53480817,118860.0,118850.0,0.3780083]
[1754958357407,0.70039817,118870.0,118860.0,0.0841265]
[1754958357618,1.51002817,118880.0,118870.0,0.0841195]
[1754958357806,0.74086817,118880.0,118870.0,0.2037295]
[1754958358109,0.74996817,118880.0,118870.0,0.2037295]
[1754958358311,0.04967,118880.0,118870.0,0.2037295]
[1754958358506,0.00156439,118890.0,118880.0,0.0841124]
[1754958358713,0.70176256,118890.0,118880.0,0.1324824]
[1754958358902,0.83553786,118890.0,118880.0,0.2037224]
[1754958359510,1.56040208,118890.0,118880.0,0.0841124]
[1754958360216,0.0841122,118880.0,118870.0,0.286104]
[1754958360407,2.31913854,118880.0,118870.0,0.287104]
[1754958360912,2.31913854,118880.0,118870.0,0.1692345]
[1754958361113,2.34343084,118880.0,118870.0,0.1692345]
[1754958361309,2.34343084,118880.0,118870.0,0.1682345]
[1754958361512,1.55902047,118880.0,118870.0,0.2878445]
[1754958362115,1.55902047,118880.0,118870.0,0.2888445]
[1754958362305,0.78476,118880.0,118870.0,0.4570803]
[1754958362509,0.81111439,118890.0,118880.0,0.0841123]
[1754958362804,1.53615256,118890.0,118880.0,0.2037223]
[1754958363011,0.05113439,118890.0,118880.0,0.2037223]
[1754958363213,1.48648256,118890.0,118880.0,0.2037223]
[1754958363601,1.51131256,118890.0,118880.0,0.2037223]
[1754958363803,1.51481256,118890.0,118880.0,0.2037223]
[1754958364310,0.72659256,118890.0,118880.0,0.2037223]
[1754958364510,0.74233256,118890.0,118880.0,0.2037223]
[1754958365316,0.71750256,118890.0,118880.0,0.2037223]
[1754958365815,0.74233256,118890.0,118880.0,0.2037223]
[1754958366016,0.83553776,118890.0,118880.0,0.2037223]
[1754958366317,0.75143256,118890.0,118880.0,0.2037223]
[1754958366711,0.05113439,118890.0,118880.0,0.2037223]
[1754958366911,0.75143256,118890.0,118880.0,0.2037223]
[1754958367112,0.01720439,118890.0,118880.0,0.2037223]
[1754958367323,0.00146439,118890.0,118880.0,0.2037223]
[1754958369218,0.70176256,118890.0,118880.0,0.2037223]
[1754958369619,0.00146439,118890.0,118880.0,0.21237681]
[1754958371922,0.0001,118900.0,118890.0,0.0841053]
[1754958372226,1.57707338,118910.0,118900.0,0.0840983]
[1754958372428,1.58047338,118910.0,118900.0,0.2037083]
[1754958373226,0.06736521,118910.0,118900.0,0.2037083]
[1754958373418,0.001,118910.0,118900.0,0.2037083]
[1754958373820,0.70129817,118910.0,118900.0,0.2037083]
[1754958374125,0.74186817,118910.0,118900.0,0.2037083]
[1754958374326,1.52630817,118910.0,118900.0,0.2037083]
[1754958374715,1.52730817,118910.0,118900.0,0.2037083]
[1754958374914,1.53080817,118910.0,118900.0,0.2037083]
[1754958377431,0.74636817,118910.0,118900.0,0.2037083]
[1754958377630,1.53064817,118910.0,118900.0,0.2037083]
[1754958378022,0.74636817,118910.0,118900.0,0.2037083]
[1754958378223,1.59862548,118910.0,118900.0,0.2037083]
[1754958382631,0.81434548,118910.0,118900.0,0.2037083]
[1754958382832,1.60410548,118910.0,118900.0,0.2037083]
[1754958383033,0.81994548,118910.0,118900.0,0.2037083]
[1754958383229,1.60406548,118910.0,118900.0,0.2037083]
[1754958383626,0.11964731,118910.0,118900.0,0.2037083]
[1754958383826,0.83229,118910.0,118900.0,0.2037083]
[1754958384032,0.04817,118910.0,118900.0,0.90400647]
[1754958384225,0.04257,118910.0,118900.0,0.2037083]
[1754958384926,0.04607,118910.0,118900.0,0.2037083]
[1754958385932,0.75196817,118910.0,118900.0,0.2037083]
[1754958388439,0.05167,118910.0,118900.0,0.2037083]
[1754958388637,0.75196817,118910.0,118900.0,0.2037083]
[1754958389230,1.53592817,118910.0,118900.0,0.2037083]
[1754958389938,0.83563,118910.0,118900.0,0.2037083]
[1754958390134,0.05167,118910.0,118900.0,0.2037083]
[1754958390339,0.01774,118910.0,118900.0,0.2037083]
[1754958390539,0.04075,118910.0,118900.0,0.2037083]
[1754958391040,0.04985,118910.0,118900.0,0.2037083]
[1754958391835,0.06823974,118920.0,118900.0,1.07219867]
[1754958392035,0.0840707,118940.0,118930.0,0.1681466]
[1754958392036,0.0035,118940.0,118930.0,0.1681466]
[1754958392241,0.0035,118940.0,118930.0,0.4535047]
[1754958392242,0.80943,118940.0,118930.0,0.4535047]
[1754958392437,0.02555,118940.0,118930.0,0.4535047]
[1754958394042,0.02555,118940.0,118930.0,0.4545047]
[1754958394342,0.04856,118940.0,118930.0,0.4545047]
[1754958394541,0.74885817,118940.0,118930.0,0.4545047]
[1754958394742,0.74885817,118940.0,118930.0,0.4565047]
[1754958395136,1.53265817,118940.0,118930.0,0.4565047]
[1754958395336,1.53265817,118940.0,118930.0,0.46511391]
[1754958395537,1.53265817,118940.0,118930.0,0.4565047]
[1754958395943,1.53257817,118940.0,118930.0,0.4565047]
[1754958396439,1.6007199,118940.0,118930.0,0.4565047]
[1754958397438,0.90042173,118940.0,118930.0,0.46515137]
[1754958397644,1.6007199,118940.0,118930.0,0.4565047]
[1754958399641,0.02651,118960.0,118940.0,0.2522069]
[1754958399844,0.82862,118960.0,118950.0,0.2012734]
[1754958400337,0.9161763,118960.0,118950.0,0.2012734]
[1754958400733,0.98436036,118960.0,118950.0,0.2012734]
[1754958400938,1.68465853,118960.0,118950.0,0.2012734]
[1754958401144,0.90030406,118960.0,118950.0,0.2012734]
[1754958402349,1.68465853,118960.0,118950.0,0.1875434]
[1754958402537,1.68436584,118960.0,118950.0,0.1399534]
[1754958402738,1.60022954,118960.0,118950.0,0.1399534]
[1754958402938,1.60022954,118960.0,118950.0,0.2012734]
[1754958403746,1.73982954,118960.0,118950.0,0.2012734]
[1754958403942,0.09373406,118960.0,118950.0,0.87755157]
[1754958404147,0.09373406,118960.0,118950.0,0.90157157]
[1754958404450,0.02555,118960.0,118950.0,0.90157157]
[1754958404742,0.02555,118960.0,118950.0,0.90257157]
[1754958405149,0.0001,118970.0,118950.0,1.32288527]
[1754958405350,0.0001,118970.0,118960.0,0.85419447]
[1754958405542,0.87604435,118980.0,118970.0,0.0840493]
[1754958405846,0.89799435,118980.0,118970.0,0.2012593]
[1754958406051,0.11463435,118980.0,118970.0,0.2012593]
[1754958406245,0.89795435,118980.0,118970.0,0.2012593]
[1754958406644,1.68229472,118980.0,118970.0,0.1554393]
[1754958406846,0.89897472,118980.0,118970.0,0.1399393]
[1754958407047,0.11463435,118980.0,118970.0,0.1875293]
[1754958407249,0.89791435,118980.0,118970.0,0.2012593]
[1754958407446,0.89791435,118980.0,118970.0,0.2022593]
[1754958408153,0.89783435,118980.0,118970.0,0.2022593]
[1754958408557,0.89783435,118980.0,118970.0,0.2032593]
[1754958409055,1.59813252,118980.0,118970.0,0.1419393]
[1754958409354,0.81493252,118980.0,118970.0,0.1409393]
[1754958409556,1.59813252,118980.0,118970.0,0.1409393]
[1754958409855,0.89783435,118980.0,118970.0,0.1409393]
[1754958410051,0.89783435,118980.0,118970.0,0.1901593]
[1754958410554,0.89783435,118980.0,118970.0,0.2053393]
[1754958410754,1.59813252,118980.0,118970.0,0.2053393]
[1754958410949,0.89771435,118980.0,118970.0,0.2043393]
[1754958411358,0.89771435,118980.0,118970.0,0.2053393]
[1754958411754,0.89771435,118980.0,118970.0,0.2063393]
[1754958413453,1.68205472,118980.0,118970.0,0.1916493]
[1754958413847,0.98175655,118980.0,118970.0,0.1916493]
[1754958414052,1.68205472,118980.0,118970.0,0.1764693]
[1754958414757,1.68205472,118980.0,118970.0,0.1409393]
[1754958416159,1.68205472,118980.0,118970.0,0.1399393]
[1754958416160,1.59801252,118980.0,118970.0,0.1399393]
[1754958416359,0.89771435,118980.0,118970.0,0.1399393]
[1754958416555,1.68205472,118980.0,118970.0,0.1399393]
[1754958416757,1.68205472,118980.0,118970.0,0.1744693]
[1754958416965,1.59801252,118980.0,118970.0,0.1744693]
[1754958417273,1.68205472,118980.0,118970.0,0.1744693]
[1754958417567,1.68205482,118980.0,118970.0,0.1754693]
[1754958417971,1.68205482,118980.0,118970.0,0.1764693]
[1754958418274,1.59801252,118980.0,118970.0,0.1911593]
[1754958418570,1.59801252,118980.0,118970.0,0.1764693]
[1754958418772,1.68205482,118980.0,118970.0,0.1764693]
[1754958421477,0.89771435,118980.0,118970.0,0.1764693]
[1754958421673,1.59801252,118980.0,118970.0,0.1764693]
[1754958422361,1.59801252,118980.0,118970.0,0.1911593]
[1754958422573,1.59801252,118980.0,118970.0,0.2063393]
[1754958423074,0.11463435,118980.0,118970.0,0.2063393]
[1754958426780,0.06607435,118980.0,118970.0,1.68919747]
[1754958426979,0.00506326,118990.0,118980.0,0.0840423]
[1754958427173,0.02560326,118990.0,118980.0,0.83038047]
[1754958427378,0.04983326,118990.0,118980.0,0.2036823]
[1754958428477,0.04983326,118990.0,118980.0,0.2056823]
[1754958428980,0.04983326,118990.0,118980.0,0.2066823]
[1754958429174,0.09442232,118990.0,118980.0,0.2066823]
[1754958429383,0.02560326,118990.0,118980.0,0.2066823]
[1754958429679,0.02560326,118990.0,118980.0,0.21527962]
[1754958429875,0.00146326,118990.0,118980.0,0.91557779]
[1754958430480,0.0001,119000.0,118990.0,0.0840352]
[1754958430782,0.04837,119000.0,118990.0,0.3717412]
[1754958432084,0.04837,119000.0,118990.0,0.3727412]
[1754958433078,0.83269637,119000.0,118990.0,0.2531012]
[1754958433279,0.74866817,119000.0,118990.0,0.2531012]
[1754958433583,0.81463144,119000.0,118990.0,0.2774812]
[1754958433778,0.81463144,119000.0,118990.0,0.3727412]
[1754958434077,0.81463144,119000.0,118990.0,0.3737412]
[1754958434278,0.11433327,119000.0,118990.0,0.3737412]
[1754958434480,0.81463144,119000.0,118990.0,0.3737412]
[1754958438986,0.95423144,119000.0,118990.0,0.3737412]
[1754958439186,0.25393327,119000.0,118990.0,0.3737412]
[1754958439384,0.22970327,119000.0,118990.0,0.3737412]
[1754958439782,0.25249327,119000.0,118990.0,0.3737412]
[1754958440276,0.22970327,119000.0,118990.0,0.3737412]
[1754958441280,0.06596327,119000.0,118990.0,0.3737412]
[1754958441486,0.00156299,119010.0,118990.0,1.15807457]
[1754958441683,0.00506299,119010.0,119000.0,0.1556982]
[1754958441990,0.02679299,119010.0,119000.0,0.2030082]
[1754958442179,0.0931001,119010.0,119000.0,0.2030082]
[1754958443484,0.0036,119020.0,119000.0,1.15538647]
[1754958443688,0.02639,119020.0,119010.0,0.1556911]
[1754958443888,0.04812,119020.0,119010.0,0.2030011]
[1754958444987,0.74841817,119020.0,119010.0,0.2030011]
[1754958447086,0.81728709,119020.0,119010.0,0.0840211]
[1754958447394,0.90276397,119020.0,119010.0,0.0840211]
[1754958447586,0.90247141,119020.0,119010.0,0.0840211]
[1754958447788,0.81699453,119020.0,119010.0,0.0840211]
[1754958448086,0.81699453,119020.0,119010.0,0.1726011]
[1754958448285,0.81699453,119020.0,119010.0,0.1154311]
[1754958448286,0.09390636,119020.0,119010.0,0.1154311]
[1754958448586,0.08509892,119020.0,119010.0,0.2030011]
[1754958448782,0.1144817,119020.0,119010.0,0.2030011]
[1754958448987,0.0916917,119020.0,119010.0,0.2030011]
[1754958449292,0.1144817,119020.0,119010.0,0.2030011]
[1754958449678,0.1176917,119020.0,119010.0,0.2030011]
[1754958450684,0.81798987,119020.0,119010.0,0.2030011]
[1754958450889,0.90200397,119020.0,119010.0,0.1071211]
[1754958451289,0.90200397,119020.0,119010.0,0.1411911]
[1754958451793,0.90200397,119020.0,119010.0,0.1502911]
[1754958452094,0.90200397,119020.0,119010.0,0.1871011]
[1754958452293,0.90200397,119020.0,119010.0,0.0840211]
[1754958452693,0.90200397,119020.0,119010.0,0.1411911]
[1754958452893,0.90200397,119020.0,119010.0,0.2030011]
[1754958453293,0.81798987,119020.0,119010.0,0.2030011]
[1754958453695,0.95758987,119020.0,119010.0,0.2030011]
[1754958454191,0.2572917,119020.0,119010.0,0.2030011]
[1754958454398,0.92966987,119020.0,119010.0,0.2030011]
[1754958454692,0.2572917,119020.0,119010.0,0.2030011]
[1754958454995,0.95758987,119020.0,119010.0,0.2030011]
[1754958455195,1.73926987,119020.0,119010.0,0.2030011]
[1754958455585,1.0389717,119020.0,119010.0,0.2030011]
[1754958455893,0.0865617,119020.0,119010.0,0.90329927]
[1754958456598,0.0865617,119020.0,119010.0,0.2030011]
[1754958456797,0.00331,119030.0,119010.0,1.07133727]
[1754958457005,0.0001,119030.0,119020.0,0.85598247]
[1754958457300,0.94734,119040.0,119030.0,0.0840073]
[1754958457489,0.9686,119040.0,119030.0,0.2029873]
[1754958459287,0.9686,119040.0,119030.0,0.1689173]
[1754958459493,0.9686,119040.0,119030.0,0.2029873]
[1754958459799,1.66889817,119040.0,119030.0,0.2029873]
[1754958460399,1.03494425,119040.0,119030.0,0.2029873]
[1754958463202,1.03494425,119040.0,119030.0,0.0840073]
[1754958463403,1.03494425,119040.0,119030.0,0.1071073]
[1754958463702,1.11894445,119040.0,119030.0,0.1870873]
[1754958464101,1.81924262,119040.0,119030.0,0.1870873]
[1754958464402,1.81924262,119040.0,119030.0,0.0840073]
[1754958464799,2.52100332,119040.0,119030.0,0.0840073]
[1754958465503,0.2236072,119030.0,119020.0,0.2520384]
[1754958465695,0.97126537,119030.0,119020.0,0.2520384]
[1754958466503,0.2709672,119030.0,119020.0,0.2520384]
[1754958466802,0.97126537,119030.0,119020.0,0.2520384]
[1754958469807,0.2709672,119030.0,119020.0,0.2520384]
[1754958470003,0.97126537,119030.0,119020.0,0.2520384]
[1754958471807,0.88725817,119030.0,119020.0,0.2520384]
[1754958472108,0.88725817,119030.0,119020.0,0.2751284]
[1754958472109,0.97126537,119030.0,119020.0,0.2751284]
[1754958477206,0.0840143,119020.0,119010.0,0.1680374]
[1754958477412,0.2236214,119010.0,119000.0,0.2751654]
[1754958477708,0.2424714,119010.0,119000.0,0.2751654]
[1754958479113,0.94276957,119010.0,119000.0,0.2751654]
[1754958480213,1.11082537,119010.0,119000.0,0.0840284]
[1754958480609,1.11228833,119010.0,119000.0,0.1071184]
[1754958481612,1.11228833,119010.0,119000.0,0.2013484]
[1754958482609,1.11228833,119010.0,119000.0,0.1868884]
[1754958482813,1.11228833,119010.0,119000.0,0.1071184]
[1754958483315,1.12092436,119010.0,119000.0,0.1071184]
[1754958484119,0.0840284,119000.0,118990.0,0.4057604]
[1754958484314,1.57692657,119000.0,118990.0,0.4309304]
[1754958484508,1.58417657,119000.0,118990.0,0.4534504]
[1754958485405,1.58417657,119000.0,118990.0,0.4544504]
[1754958486015,1.58417657,119000.0,118990.0,0.4554504]
[1754958490129,0.8838784,119000.0,118990.0,0.4554504]
[1754958490320,1.58417657,119000.0,118990.0,0.4554504]
[1754958490929,1.58013657,119000.0,118990.0,0.4554504]
[1754958492324,0.0116,119000.0,118990.0,0.4554504]
[1754958492527,1.62551113,119010.0,119000.0,0.0840283]
[1754958492732,1.72103243,119010.0,119000.0,0.1317183]
[1754958492926,1.63701113,119010.0,119000.0,0.2013483]
[1754958493228,1.64537535,119010.0,119000.0,0.2013483]
[1754958493827,0.78230296,119010.0,119000.0,0.90164647]
[1754958494129,0.78230296,119010.0,119000.0,0.2013483]
[1754958495629,0.78551296,119010.0,119000.0,0.2013483]
[1754958495831,0.01627296,119010.0,119000.0,0.2013483]
[1754958497431,0.00146296,119010.0,119000.0,0.2013483]
[1754958498932,0.70497113,119010.0,119000.0,0.2013483]
[1754958499227,0.94019233,119010.0,119000.0,0.1071183]
[1754958499434,0.94423233,119010.0,119000.0,0.1075583]
[1754958500334,0.86021113,119010.0,119000.0,0.1413883]
[1754958500533,0.94423233,119010.0,119000.0,0.2020683]
[1754958502733,0.86021113,119010.0,119000.0,0.2020683]
[1754958503035,0.94423233,119010.0,119000.0,0.2020683]
[1754958503226,0.86021113,119010.0,119000.0,0.2020683]
[1754958503533,0.94423233,119010.0,119000.0,0.2020683]
[1754958504431,0.94423233,119010.0,119000.0,0.1884783]
[1754958505232,0.94423233,119010.0,119000.0,0.0840283]
[1754958505635,0.94423233,119010.0,119000.0,0.1075583]
[1754958506531,0.94423233,119010.0,119000.0,0.1075583]
[1754958507939,0.94423233,119010.0,119000.0,0.1413883]
[1754958508134,0.94423233,119010.0,119000.0,0.2020683]
[1754958509636,0.94423233,119010.0,119000.0,0.0840283]
[1754958509838,0.94423233,119010.0,119000.0,0.0840282]
[1754958509839,1.8125835,119010.0,119000.0,0.0840282]
[1754958510035,1.11228533,119010.0,119000.0,0.0840282]
[1754958510240,1.11228533,119010.0,119000.0,0.1075582]
[1754958512139,0.15991296,119010.0,119000.0,0.1075582]
[1754958512443,0.94423233,119010.0,119000.0,0.1075582]
[1754958513547,0.24393416,119010.0,119000.0,0.1075582]
[1754958513846,0.94423233,119010.0,119000.0,0.1413882]
[1754958517848,0.94423233,119010.0,119000.0,0.1884782]
[1754958518047,0.94423233,119010.0,119000.0,0.2020682]
[1754958519447,0.94423233,119010.0,119000.0,0.1884782]
[1754958519643,0.94423233,119010.0,119000.0,0.1075582]
[1754958520044,0.3917026,119000.0,118990.0,0.1680648]
[1754958520246,2.59122894,119000.0,118990.0,0.1915948]
[1754958520441,1.72286107,119000.0,118990.0,0.1915948]
[1754958520746,1.72286107,119000.0,118990.0,0.2861048]
[1754958521349,1.72286107,119000.0,118990.0,0.2871048]
[1754958521849,1.72286107,119000.0,118990.0,0.2881048]
[1754958522749,1.72286107,119000.0,118990.0,0.2871048]
[1754958522952,2.42315924,119000.0,118990.0,0.2396848]
[1754958523151,2.42315924,119000.0,118990.0,0.1925948]
[1754958523952,2.42315924,119000.0,118990.0,0.1915948]
[1754958524545,2.42315924,119000.0,118990.0,0.1680648]
[1754958524747,0.0840354,118990.0,118980.0,0.2521189]
[1754958524947,0.80318357,118990.0,118980.0,0.2756489]
[1754958526148,0.80318357,118990.0,118980.0,0.2766489]
[1754958526647,0.80318357,118990.0,118980.0,0.2776489]
[1754958527154,0.80318357,118990.0,118980.0,0.2766489]
[1754958527954,0.80318357,118990.0,118980.0,0.3701589]
[1754958528752,0.81168931,118990.0,118980.0,0.3701589]
[1754958533758,0.25099114,118990.0,118980.0,0.3701589]
[1754958533957,0.85470817,118990.0,118980.0,0.3701589]
[1754958534461,0.1396,118990.0,118980.0,0.3701589]
[1754958534653,0.91932,118990.0,118980.0,1.07045707]
[1754958534854,0.91932,118990.0,118980.0,0.3701589]
[1754958536268,0.91932,118990.0,118980.0,0.3721589]
[1754958537661,0.1396,118990.0,118980.0,0.3721589]
[1754958539963,0.14281,118990.0,118980.0,0.3721589]
[1754958541371,0.1396,118990.0,118980.0,0.3721589]
[1754958541776,0.93874357,118990.0,118980.0,0.3721589]
[1754958542167,0.85470817,118990.0,118980.0,0.3721589]
[1754958542975,0.93874357,118990.0,118980.0,0.3721589]
[1754958543174,0.93874357,118990.0,118980.0,0.3247389]
[1754958543473,0.85874817,118990.0,118980.0,0.3725589]
[1754958543675,0.85470817,118990.0,118980.0,0.3725589]
[1754958544478,0.15441,118990.0,118980.0,0.3725589]
[1754958544665,0.85470817,118990.0,118980.0,0.3725589]
[1754958545276,0.85470817,118990.0,118980.0,0.3715589]
[1754958546176,0.85470817,118990.0,118980.0,0.3705589]
[1754958547775,0.85874817,118990.0,118980.0,0.3705589]
[1754958548778,0.85874817,118990.0,118980.0,0.3227389]
[1754958548979,0.85874817,118990.0,118980.0,0.3565189]
[1754958549181,0.85874817,118990.0,118980.0,0.3705589]
[1754958550877,0.94278337,118990.0,118980.0,0.2521189]
[1754958551080,0.94278337,118990.0,118980.0,0.1680785]
[1754958551377,0.0840423,118980.0,118970.0,0.2521467]
[1754958551684,1.72211047,118980.0,118970.0,0.2762767]
[1754958552984,1.0218123,118980.0,118970.0,0.2762767]
[1754958553179,1.72211047,118980.0,118970.0,0.2772767]
[1754958553581,1.78967808,118980.0,118970.0,0.2772767]
[1754958553890,1.78967808,118980.0,118970.0,0.2782767]
[1754958554782,1.78967808,118980.0,118970.0,0.3120567]
[1754958557887,1.70159578,118980.0,118970.0,0.3744167]
[1754958558084,1.78563768,118980.0,118970.0,0.3744167]
[1754958558686,1.78967768,118980.0,118970.0,0.3744167]
[1754958559186,1.70563578,118980.0,118970.0,0.3744167]
[1754958559690,1.00533761,118980.0,118970.0,0.3744167]
[1754958559889,1.70563578,118980.0,118970.0,0.3744167]
[1754958561688,1.78967768,118980.0,118970.0,0.3744167]
[1754958561989,1.70563578,118980.0,118970.0,0.3744167]
[1754958563087,0.92227578,118980.0,118970.0,0.3744167]
[1754958563292,1.70147578,118980.0,118970.0,0.3744167]
[1754958564285,0.92227578,118980.0,118970.0,0.3744167]
[1754958564484,1.70143578,118980.0,118970.0,0.3744167]
[1754958565793,1.78547768,118980.0,118970.0,0.3603767]
[1754958565988,1.78951768,118980.0,118970.0,0.2782767]
[1754958566492,1.78951768,118980.0,118970.0,0.3753167]
[1754958568397,1.70547578,118980.0,118970.0,0.3753167]
[1754958569693,1.70143578,118980.0,118970.0,0.3753167]
[1754958571491,1.00113761,118980.0,118970.0,0.3753167]
[1754958571689,1.70143578,118980.0,118970.0,0.3753167]
[1754958571894,1.69822578,118980.0,118970.0,0.3753167]
[1754958572186,0.22197761,118980.0,118970.0,0.3753167]
[1754958572386,0.98620761,118980.0,118970.0,0.3753167]
[1754958572592,1.00101761,118980.0,118970.0,0.3753167]
[1754958573896,1.70131578,118980.0,118970.0,0.3753167]
[1754958577796,1.70535578,118980.0,118970.0,0.3753167]
[1754958579600,1.70131578,118980.0,118970.0,0.3753167]
[1754958581502,1.70535578,118980.0,118970.0,0.3753167]
[1754958584100,1.70131578,118980.0,118970.0,0.2782767]
[1754958584304,1.70535578,118980.0,118970.0,0.2782767]
[1754958584504,1.70535578,118980.0,118970.0,0.3606167]
[1754958584800,1.70535578,118980.0,118970.0,0.2778367]
[1754958586006,1.00505761,118980.0,118970.0,0.2778367]
[1754958586203,1.70535578,118980.0,118970.0,0.2778367]
[1754958586404,1.70535578,118980.0,118970.0,0.3119267]
[1754958586606,1.70535578,118980.0,118970.0,0.3368567]
[1754958587004,1.70535578,118980.0,118970.0,0.3748767]
[1754958596512,1.70535578,118980.0,118970.0,0.3601767]
[1754958598213,1.70535578,118980.0,118970.0,0.3260867]
[1754958598511,1.78939768,118980.0,118970.0,0.3260867]
[1754958598712,1.78939768,118980.0,118970.0,0.2541467]
[1754958598916,1.78939768,118980.0,118970.0,0.0860489]
[1754958598917,2.48969585,118980.0,118970.0,0.0860489]
[1754958599109,1.78939768,118980.0,118970.0,0.0787989]
[1754958600613,1.08909951,118980.0,118970.0,0.0787989]
[1754958600911,1.78535768,118980.0,118970.0,0.1023489]
[1754958602199,1.78535768,118980.0,118970.0,0.0787989]
[1754958608522,1.08505951,118980.0,118970.0,0.0787989]
[1754958608816,1.78535768,118980.0,118970.0,0.0787989]
[1754958610225,0.2236489,118970.0,118960.0,0.2521611]
[1754958610417,1.62424524,118970.0,118960.0,0.2521611]
[1754958610713,1.62424524,118970.0,118960.0,0.2757111]
[1754958610919,1.62424524,118970.0,118960.0,0.1681069]
[1754958611116,0.2236559,118960.0,118950.0,0.2757369]
[1754958611317,2.40233224,118960.0,118950.0,0.2757369]
[1754958612823,2.41074384,118960.0,118950.0,0.2757369]
[1754958613016,2.41074384,118960.0,118950.0,0.2807369]
[1754958613212,2.41074384,118960.0,118950.0,0.1731246]
[1754958613413,2.41074384,118960.0,118950.0,0.089063]
[1754958613814,2.41074384,118960.0,118950.0,0.005]
[1754958615025,2.41074384,118960.0,118950.0,0.002]
[1754958615322,2.41174384,118960.0,118950.0,0.002]
[1754958615714,0.001,118960.0,118950.0,0.190143]
[1754958615912,0.001,118960.0,118950.0,0.204693]
[1754958616121,0.70129817,118960.0,118950.0,0.204693]
[1754958616318,0.70129817,118960.0,118950.0,0.202693]
[1754958623935,0.001,118960.0,118950.0,0.202693]
[1754958624134,0.70129817,118960.0,118950.0,0.202693]
[1754958625035,1.48565284,118960.0,118950.0,0.202693]
[1754958625334,1.48565284,118960.0,118950.0,0.084063]
[1754958625335,1.62525284,118960.0,118950.0,0.084063]
[1754958625731,0.0840636,118950.0,118940.0,0.3362708]
[1754958626036,1.56220177,118950.0,118940.0,0.4572808]
[1754958628036,1.56220177,118950.0,118940.0,0.4434208]
[1754958628632,1.70180177,118950.0,118940.0,0.4084608]
[1754958629236,1.70180177,118950.0,118940.0,0.4434208]
[1754958629436,1.70180177,118950.0,118940.0,0.4572808]
[1754958630436,1.61773817,118950.0,118940.0,0.4572808]